Cogmind - Beta 16.1 @@@ ROGUE MODE // 2026.02.26 @ 20:16:16 Player: DS-RVS Result: Destroyed by G-73 Enforcer with Phase Gun Performance ------------- Evolutions (9) 4500 Regions Visited (26) 5200 Robots Destroyed (256) 1280 Value Destroyed (10129) 10129 Prototype IDs (27) 540 Alien Tech Used (4) 800 Bonus (10718) 10718 TOTAL SCORE: 33167 Bonus ------- High Alert Combat Kills 526 Follower Combat Kills 1551 Hunted by Unchained 500 Awakened Behemoth Slayer 1000 Network Hubs Disabled 200 Met Warlord at Base 500 MAIN.C Attacked Warlord 500 Warlord Defense Kills 1028 Built Enhanced Grunts 300 A7 Reached Mainframe 300 Met R17 at Cetus 500 Met R17 at Research 2000 Met Sigix 2000 Friendly Fire -187 Cogmind --------- Core Integrity 0/1600 Matter 165/300 Energy 81/100 System Corruption 10% Temperature Cool (9) Movement Core (50) Location -1/Access Parts ------- > --- POWER (2) -------- (None) > --- PROPULSION (10) -- (None) > --- UTILITY (10) ----- Advanced Signal Interpreter Ghost Barrier > --- WEAPON (3) ------- CR-A16's Behemoth Slayer > --- INVENTORY (5) ---- Micro Antimatter Reactor Compact Particle Reactor Subatomic Replicator Compact HERF Cannon Peak State ------------ > --- POWER ------------ Micro Antimatter Reactor Light Quantum Reactor > --- PROPULSION ------- Improved Gyrokinetic Inverter Antigrav Array Antigrav Array Antigrav Array Antigrav Array Cooled Linear Gravjet > --- UTILITY ---------- Experimental Heat Sink Large Storage Unit Advanced Sensor Array Advanced Signal Interpreter Improved Terrain Scanner Advanced Terrain Scan Processor Experimental Targeting Computer Experimental Thermal Shield Advanced Hacking Suite Ghost Barrier > --- WEAPON ----------- Improved Matter Neutralizer Ragnarok Missile Launcher CR-A16's Behemoth Slayer > --- INVENTORY -------- Antigrav Array Antigrav Array High-capacity Battery Quantum Capacitor Improved Force Field Transdimensional Reconstructor Subatomic Replicator Compact HERF Cannon Vortex Driver Ragnarok Missile Launcher [Rating: 191] Favorites ----------- Power Quantum Reactor Engine Improved Deuterium Engine Power Core Micro Nuclear Core Reactor Quantum Reactor Propulsion Carbon-fiber Leg Treads Centrium Heavy Treads Leg Carbon-fiber Leg Hover Unit Gravmag Array Flight Unit Diametric Drive Utility High-capacity Storage Unit Device Improved Heat Sink Storage High-capacity Storage Unit Processor Advanced Signal Interpreter Hackware Makeshift System Shield Protection Improved Light Armor Plating Artifact Core Physics Calibrator Weapon Improved Assault Rifle Energy Gun Advanced Variable Charge Gun Energy Cannon Advanced Beam Cannon Ballistic Gun Improved Assault Rifle Ballistic Cannon Gauss Cannon Launcher Heavy Missile Launcher Slashing Weapon Chainsword Piercing Weapon CR-A16's Behemoth Slayer Build | -11 -10 -9 -9 -8 -7 -7 -7 -7 -6 -6 -5 -5 -5 -5 -5 -4 -4 -4 -4 -3 -3 -3 -3 -2 -2 -1 ------- Run | Yrd Mat Mat Sto Mat Fac Low Low Zio Pro Fac Fac Ext Cet Arc Hub Fac Upp Upp War Pro Res Qua Sec Res Tes Acc Slots Evolved 18 | . . 2 . 2 2 . . . . 2 2 . . . . 2 . . . . 2 . . 2 . 2 Power 1 | . . . . . . . . . . . 1 . . . . . . . . . . . . . . . Propulsion 8 | . . 1 . 1 . . . . . 1 1 . . . . . . . . . . . . 2 . 2 Utility 8 | . . . . 1 2 . . . . 1 . . . . . 2 . . . . 2 . . . . . Weapon 1 | . . 1 . . . . . . . . . . . . . . . . . . . . . . . . Parts Attached 220 | 7 8 11 14 15 14 4 3 2 4 42 12 8 8 2 4 2 3 . 5 2 12 3 4 15 6 10 Power 24 | 1 1 2 . 2 2 . . . 1 4 1 2 2 1 . . . . . . . . . 2 1 2 Engine 5 | 1 . 1 . . 1 . . . . 1 . 1 . . . . . . . . . . . . . . Core 11 | . 1 1 . 2 1 . . . 1 3 1 1 . . . . . . . . . . . . . . Reactor 8 | . . . . . . . . . . . . . 2 1 . . . . . . . . . 2 1 2 Propulsion 76 | 2 4 4 6 6 2 1 1 1 1 15 3 5 2 . 2 . . . 1 . 7 . 2 7 . 4 Treads 7 | 2 . . . . . . . . . . . . 2 . 1 . . . 1 . 1 . . . . . Leg 44 | . 4 4 6 6 2 1 1 1 1 15 . 2 . . 1 . . . . . . . . . . . Wheel . | . . . . . . . . . . . . . . . . . . . . . . . . . . . Hover 17 | . . . . . . . . . . . 3 3 . . . . . . . . . . . 7 . 4 Flight 8 | . . . . . . . . . . . . . . . . . . . . . 6 . 2 . . . Utility 63 | 2 1 2 2 4 6 1 1 . 1 12 3 1 1 1 1 2 2 . 2 1 4 2 2 5 2 2 Device 29 | 1 1 . 1 1 3 . 1 . . 4 2 1 . 1 1 1 1 . . 1 2 1 1 3 . 2 Storage 5 | 1 . 1 1 . . . . . . . . . . . . . . . . . 1 . . 1 . . Processor 8 | . . 1 . . 1 . . . 1 2 . . . . . . . . . . 1 . . 1 1 . Hackware 6 | . . . . . 1 . . . . 3 . . . . . . . . . . . 1 . . 1 . Protection 14 | . . . . 3 1 1 . . . 3 1 . 1 . . 1 1 . 2 . . . . . . . Artifact 1 | . . . . . . . . . . . . . . . . . . . . . . . 1 . . . Weapon 57 | 2 2 3 6 3 4 2 1 1 1 11 5 . 3 . 1 . 1 . 2 1 1 1 . 1 3 2 Energy Gun 12 | 1 1 2 . 1 . . . 1 1 4 . . 1 . . . . . . . . . . . . . Energy Cannon 11 | . . . 2 . 1 . 1 . . . 2 . . . . . . . 1 . . 1 . 1 1 1 Ballistic Gun 19 | 1 1 . 3 1 1 . . . . 6 2 . 2 . . . 1 . . 1 . . . . . . Ballistic Cannon 4 | . . . . 1 1 . . . . . . . . . . . . . . . 1 . . . 1 . Launcher 8 | . . 1 1 . . 2 . . . . 1 . . . . . . . 1 . . . . . 1 1 Special Weapon . | . . . . . . . . . . . . . . . . . . . . . . . . . . . Impact Weapon . | . . . . . . . . . . . . . . . . . . . . . . . . . . . Slashing Weapon 1 | . . . . . 1 . . . . . . . . . . . . . . . . . . . . . Piercing Weapon 2 | . . . . . . . . . . 1 . . . . 1 . . . . . . . . . . . Special Melee Weapon . | . . . . . . . . . . . . . . . . . . . . . . . . . . . Unidentified Prototypes 28 | . . . 3 . . . . . . 2 1 . 4 . 1 . . . 1 . 1 3 2 4 4 2 Corrupted Parts 3 | . . . . . . . . . . 1 . . 1 . . . . . 1 . . . . . . . System Corruption 11 | . . . . . . . . . . 2 . . 5 . . . . . 4 . . . . . . . Parts Lost 62 | . 2 2 . 3 5 . . . 3 13 4 6 1 1 . . . . . . . . . . . 22 Power 10 | . . 1 . 1 1 . . . 1 . 1 2 1 . . . . . . . . . . . . 2 Propulsion 25 | . 1 1 . . 2 . . . 1 7 . 3 . 1 . . . . . . . . . . . 9 Utility 19 | . 1 . . 2 2 . . . 1 1 3 1 . . . . . . . . . . . . . 8 Weapon 8 | . . . . . . . . . . 5 . . . . . . . . . . . . . . . 3 Highest Loss Streak 13 | . 1 2 . 1 3 . . . 2 3 3 5 1 1 . . . . . . . . . . . 13 To Critical Strikes 2 | . . . . . . . . . . . . 1 1 . . . . . . . . . . . . . Average Backups 16 | 4 6 6 14 19 19 19 20 19 17 17 18 18 16 18 19 19 18 19 18 18 16 4 5 9 11 8 Power . | . 1 . 1 . . 1 1 1 . 1 . 1 . . 1 1 1 1 1 1 1 . . . . . Propulsion 2 | 2 3 3 3 3 . . 1 2 3 2 5 4 1 . . . . . . 1 2 1 1 3 3 1 Utility 6 | . . 1 4 6 9 10 10 9 8 8 3 3 5 7 8 7 7 9 7 6 3 . . 2 3 1 Weapon 6 | . 1 1 6 8 8 7 7 7 5 5 7 9 10 10 10 10 9 9 9 10 9 2 2 2 2 2 Tool/Special . | . . . . . . . . . . . . . . . . . . . . . . . . . . . Unused Backups 41 | . 1 . 4 2 . . 1 5 . 8 1 . 2 1 . 1 2 . 3 . 6 1 . 1 1 1 Power 3 | . 1 . . . . . . . . 1 1 . . . . . . . . . . . . . . . Propulsion 5 | . . . 2 . . . 1 1 . . . . . . . . . . . . 1 . . . . . Utility 15 | . . . 1 . . . . 2 . 6 . . . . . 1 . . 3 . 1 . . . 1 . Weapon 16 | . . . 1 2 . . . 2 . 1 . . 2 1 . . 1 . . . 4 1 . 1 . . Tool/Special 2 | . . . . . . . . . . . . . . . . . 1 . . . . . . . . 1 Average Slot Usage (%) 90 | . 98 99 100 99 98 99 100 88 96 97 71 65 81 83 86 83 84 84 83 84 84 86 90 81 83 62 Engine 1 | . 3 3 . . 1 7 7 7 . . . . . . . . . . . . . . . . . . Core 4 | . 10 7 11 9 5 . . . 6 5 4 5 3 . . . . . . . . . . . . . Reactor 2 | . . . . . . . . . . . . . 5 11 11 10 10 10 10 10 8 4 4 6 8 6 Treads 3 | . 6 . . . . . . . . . . . 9 11 12 15 15 15 15 21 17 . . . . . Leg 19 | . 21 32 33 36 29 30 30 30 27 31 . 2 1 . 3 5 5 5 4 . . . . . . . Hover 2 | . . . . . . . . . . . 16 15 11 6 4 . . . . . . . . 16 20 16 Device 11 | . 12 10 10 5 20 15 15 15 7 7 2 8 5 5 9 10 9 10 9 8 14 22 23 19 18 12 Storage 7 | . 14 11 11 9 7 7 7 7 7 6 5 5 5 5 5 5 5 5 5 5 4 4 4 4 4 3 Processor 5 | . . . . . 7 7 7 7 14 6 5 5 5 5 5 5 5 5 5 5 8 9 9 8 11 6 Hackware 5 | . . . . . . . . . . 13 15 11 11 11 11 10 10 10 10 10 9 9 9 8 8 6 Protection 3 | . . . . 12 1 6 7 7 7 3 2 1 1 5 1 4 5 5 5 6 3 . . . . . Energy Gun 4 | . 14 21 5 3 2 1 . . 14 7 2 . 2 5 5 5 5 5 3 . . . . . . . Energy Cannon 2 | . . . 10 5 . 7 13 3 . . 1 1 . . . . . . 1 5 1 1 4 4 2 3 Ballistic Gun 7 | . 14 10 16 14 8 3 . . . 7 9 . 10 11 6 5 7 10 9 7 6 . . . . . Slashing Weapon 1 | . . . . . 5 2 5 7 . . . . . . . . . . . . . . . . . . Piercing Weapon 1 | . . . . . . . . . . 2 . 4 2 . 3 5 2 . . . 2 4 4 4 4 3 Peak Build Rating 191 | 7 12 18 27 34 47 47 47 47 51 68 79 76 126 126 123 137 144 138 139 132 146 121 130 162 185 191 Average Rating 69 | 4 10 14 23 32 43 45 45 42 48 61 74 69 108 120 122 135 138 137 135 128 139 114 120 148 178 147 On Entrance 83 | . 7 12 18 27 34 42 47 46 47 49 65 70 69 126 121 123 137 138 138 129 129 112 121 120 162 177 Avg Prop Armor Cover (%) 3 | . . . . . . . . . . . . 20 9 2 3 1 1 1 1 . . . . 5 . . Naked Turns . | . . . . . . . . . . . . . . . . . . . . . . . . . . . Heaviest Build 137 | 14 16 28 62 67 76 73 73 66 70 71 65 68 101 103 103 113 131 117 137 137 129 41 40 64 74 89 Greatest Support 222 | 40 40 30 35 55 55 59 59 64 67 93 66 66 160 160 187 187 187 187 210 210 222 42 42 104 104 130 Greatest Overweight (x) 3 | . . 1 1 1 1 1 1 1 1 1 . 1 3 . . . . . . . 1 . . 1 . 1 Average Overweight (x) . | . . . . 1 1 1 1 . . . . . . . . . . . . . . . . . . . Largest Inventory Capacity 20 | 8 8 10 20 20 20 20 20 20 20 20 20 20 20 20 20 20 20 20 20 20 20 5 5 15 15 15 Average Capacity 18 | 6 8 9 18 20 20 20 20 20 20 20 20 20 20 20 20 20 20 20 20 20 19 5 5 12 15 13 Most Carried 20 | 6 8 10 20 20 20 20 20 20 19 20 20 20 20 20 20 20 20 20 20 20 20 5 5 15 15 13 Average Carried 16 | 4 6 6 15 19 19 19 19 19 17 18 19 18 17 19 19 20 19 19 19 19 18 4 4 11 14 9 Final Capacity 20 | 8 8 10 20 20 20 20 20 20 20 20 20 20 20 20 20 20 20 20 20 20 5 5 5 15 15 5 Final Carried 20 | 6 7 10 20 20 19 20 20 19 18 20 20 16 20 20 20 20 20 20 20 19 5 5 4 15 15 4 Class Distribution -------------------- 26% | Scavenger-Tank 18% | Scavenger-Mutant 14% | Mutant 9% | Scavenger-Gunner 7% | Hacker-Mutant 6% | Hacker-Scout 4% | Skirmisher 3% | Derelict-Mutant 3% | Scavenger-Skirmisher Dominant Class ---------------- Scavenger-Mutant | -10/Materials Scavenger-Gunner | -9/Materials Scavenger-Gunner | -9/Storage Scavenger-Tank | -8/Materials Scavenger-Mutant | -7/Factory Skirmisher | -7/Lower Caves Mutant | -7/Lower Caves Mutant | -7/Zion Derelict-Gunner | -6/Proximity Caves Scavenger-Tank | -6/Factory Hacker-Mutant | -5/Factory Hacker-Mutant | -5/Extension Scavenger-Tank | -5/Cetus Scavenger-Tank | -5/Archives Scavenger-Mutant | -5/Hub_04(d) Scavenger-Mutant | -4/Factory Scavenger-Tank | -4/Upper Caves Scavenger-Tank | -4/Upper Caves Scavenger-Tank | -4/Warlord Scavenger-Tank | -3/Proximity Caves Scavenger-Assassin | -3/Research Hacker-Scout | -3/Quarantine Hacker-Scout | -3/Section 7 Hacker-Scout | -2/Research Hacker-Scout | -2/Testing Hacker-Scout | -1/Access Resources | -11 -10 -9 -9 -8 -7 -7 -7 -7 -6 -6 -5 -5 -5 -5 -5 -4 -4 -4 -4 -3 -3 -3 -3 -2 -2 -1 ----------- Run | Yrd Mat Mat Sto Mat Fac Low Low Zio Pro Fac Fac Ext Cet Arc Hub Fac Upp Upp War Pro Res Qua Sec Res Tes Acc Matter Collected 6575 | 250 163 161 557 712 536 129 55 60 194 1200 295 120 250 120 56 . 252 33 40 124 98 108 . 260 151 651 Remotely . | . . . . . . . . . . . . . . . . . . . . . . . . . . . Salvage Created 10887 | 110 558 430 1395 1218 814 153 170 . 268 2412 299 267 250 117 . 44 268 . 395 251 . 103 66 312 182 805 Parts 530 | 6 25 21 95 71 49 6 4 . 13 101 15 8 8 4 . 2 10 . 11 8 . 13 7 12 12 29 Haulers Intercepted 13 | . 1 . 6 1 2 . . . . 1 . . . . . . . . . . . . . 2 . . Recyclers Shooed 11 | . . . . 1 1 . . . . 8 . . . . . 1 . . . . . . . . . . Parts Field Recycled . | . . . . . . . . . . . . . . . . . . . . . . . . . . . Retrieved Matter . | . . . . . . . . . . . . . . . . . . . . . . . . . . . Parts Self-Destructed 48 | . . . . . . 4 2 1 11 . . . . . . . 19 4 . 7 . . . . . . Prevented 2 | . . . . . . . . . . . . . . . . . 2 . . . . . . . . . Parts Restored . | . . . . . . . . . . . . . . . . . . . . . . . . . . . Kills | -11 -10 -9 -9 -8 -7 -7 -7 -7 -6 -6 -5 -5 -5 -5 -5 -4 -4 -4 -4 -3 -3 -3 -3 -2 -2 -1 ------- Run | Yrd Mat Mat Sto Mat Fac Low Low Zio Pro Fac Fac Ext Cet Arc Hub Fac Upp Upp War Pro Res Qua Sec Res Tes Acc Combat Hostiles Destroyed 178 | . 11 10 27 26 14 4 1 . 10 27 4 2 3 1 . 1 4 . 8 5 . . 1 . 4 15 Melee 8 | . . . . . 1 . 1 . . . . 1 . . . . . . . . . . 1 . 3 1 Guns 93 | . 11 10 13 12 9 . . . 2 21 4 . 3 1 . 1 4 . . 2 . . . . . . Cannons 22 | . . . 6 10 2 1 . . . 1 . . . . . . . . . . . . . . . 2 AOE 53 | . . . 8 4 2 3 . . 8 5 . . . . . . . . 8 3 . . . . 1 11 Classes Destroyed 22 | 2 4 2 5 2 1 . . . . 1 . 1 . . . . . . 2 1 . . . . . 1 Worker 13 | . . . 1 1 2 . . . . 5 . . . . . . . . . . . 1 . . 1 2 Builder 9 | . . . 2 . . . . . . 2 . . . . . . . . . . . 2 . . . 3 Tunneler 4 | 2 . . . 1 . . . . . . . . . . . . . . . . . . . . . 1 Hauler 13 | . 1 . 6 1 2 . . . . 1 . . . . . . . . . . . . . 2 . . Recycler 16 | 1 . . 2 2 1 . . . . 6 . 1 . . . . . . . . . . . 1 . 2 Mechanic 2 | . . . 2 . . . . . . . . . . . . . . . . . . . . . . . Operator 7 | . 2 1 2 . . . . . . . 1 . . 1 . . . . . . . . . . . . Drone 1 | . . . . . . . . . . . . . . . . . . . . 1 . . . . . . Watcher 13 | . 1 1 2 1 2 . . . . 1 . . 1 . . . . . . . . 1 . . . 3 Swarmer 29 | . . 3 6 7 3 . . . 3 . . . . . . . . . . . . . . . 2 5 Saboteur 3 | . . . . . . . . . . . . . . . . . . . 3 . . . . . . . Grunt 67 | . 11 4 14 11 4 2 . . 2 12 2 . . . . . . . 1 4 . . . . . . Brawler 5 | . . . 2 . . 1 . . 1 . . . . . . . . . 1 . . . . . . . Duelist 4 | . . . . 1 . . . . 2 1 . . . . . . . . . . . . . . . . Protector 1 | . . . 1 . . . . . . . . . . . . . . . . . . . . . . . Sentry 22 | . . 3 4 5 2 . . . 1 4 1 . . 1 . . 1 . . . . . . . . . Specialist 2 | . . . . . . . . . . 2 . . . . . . . . . . . . . . . . Hunter 16 | . . . . 2 . . 1 . . 3 1 . . . . . 2 . 1 . . . . . . 6 Programmer 20 | . . . . . 5 1 . . 1 5 . . . . . 1 1 . . . . . 1 . 2 3 Behemoth 2 | . . . . . . . . . . . . 2 . . . . . . . . . . . . . . Cetus Guard 3 | . . . . . . . . . . . . . 3 . . . . . . . . . . . . . Executioner 2 | . . . . . . . . . . . . . . . . . . . 2 . . . . . . . Sapper 1 | . . . . . . . . . . . . . . . . . . . 1 . . . . . . . Knight 1 | . . . . . . . . . . . . . . . . . . . . . . . . . . 1 Best Kill Streak 12 | 2 2 6 12 5 5 3 1 . 3 11 3 2 3 1 . 1 3 . 7 2 . 4 1 2 3 10 Combat Bots Only 9 | . 2 5 9 4 3 3 1 . 3 7 3 2 1 1 . 1 3 . 7 2 . . 1 . 2 5 Max Kills in Single Turn 4 | 1 1 1 4 4 2 3 1 . 3 4 1 1 1 1 . 1 1 . 3 1 . 1 1 1 2 4 Gunslinging . | . . . . . . . . . . . . . . . . . . . . . . . . . . . Exploded 4 | . . . 4 3 2 3 . . 3 2 . . . . . . . . 2 1 . . . . 1 4 Melee 1 | . . . . . 1 . 1 . . . . 1 . . . . . . . . . . 1 . 1 1 Uniques/NPCs Destroyed . | . . . . . . . . . . . . . . . . . . . . . . . . . . . Combat | -11 -10 -9 -9 -8 -7 -7 -7 -7 -6 -6 -5 -5 -5 -5 -5 -4 -4 -4 -4 -3 -3 -3 -3 -2 -2 -1 -------- Run | Yrd Mat Mat Sto Mat Fac Low Low Zio Pro Fac Fac Ext Cet Arc Hub Fac Upp Upp War Pro Res Qua Sec Res Tes Acc Hostile Shots Fired 1525 | . 77 54 83 107 104 6 12 . 53 294 71 56 17 12 . 10 94 2 55 63 2 4 34 13 27 275 Missed 482 | . 19 11 14 27 39 4 3 . 20 89 27 16 6 3 . 6 17 1 24 15 . 1 21 9 13 97 Hits 1043 | . 58 43 69 80 65 2 9 . 33 205 44 40 11 9 . 4 77 1 31 48 2 3 13 4 14 178 Melee 10 | . . . . . . . . . 4 . . . . . . . . . 3 . . . 1 . . 2 Projectile 1033 | . 58 43 69 80 65 2 9 . 29 205 44 40 11 9 . 4 77 1 28 48 2 3 12 4 14 176 AOE 1 | . . . . . . . . . . . . . . . . 1 . . . . . . . . . . Critical Strikes 55 | . 2 1 1 4 7 . . . 2 9 1 1 3 1 . . 3 . . 4 . . 1 . 1 14 Damage Taken 17728 | . 720 494 724 1130 830 31 119 . 693 3350 682 921 260 296 . 249 926 25 837 777 87 . 194 71 322 3990 Core 2857 | . 102 76 121 56 72 . 37 . 39 300 42 191 13 . . . 28 . 53 42 . . 110 . 43 1532 Absorbed by Shields 769 | . . . . . . . . . . . . 112 77 . . . 336 . . 232 . . . . . 12 Reduced by Siege Mode 111 | . . . . . . . . . . . . . . 15 . . 96 . . . . . . . . . Ignored by Resistances 78 | . . . . 8 47 . . . . . . . . . . . . . . . . . . 9 . 14 Regen/Repaired (Parts) 487 | . . . . . 102 . . . . . 26 115 . . . . . . 244 . . . . . . . Core Remaining (%) 78 | 100 59 . 50 89 . . . . 78 64 . . . . 75 . . . . 89 . . 82 . 97 . Volleys Fired 592 | 7 67 26 87 72 44 8 . . 15 112 21 11 15 11 1 6 17 1 13 21 1 2 . . 1 33 Largest 3 | 2 2 3 3 3 3 3 . . 3 3 3 1 3 3 3 2 3 2 1 2 2 1 . . 1 1 Hottest 260 | 70 85 125 189 143 143 171 . . 170 192 159 90 148 148 148 113 148 68 260 260 89 113 . . 70 100 Shots Fired 1319 | 14 134 76 200 184 100 11 . . 22 307 47 11 34 30 3 12 51 2 13 29 2 2 . . 2 33 Gun 1026 | 14 134 75 127 126 68 1 . . 12 282 38 . 34 30 3 12 51 2 . 16 1 . . . . . Cannon 217 | . . . 67 55 30 6 . . . 21 8 11 . . . . . . . . 1 2 . . 1 15 Launcher 76 | . . 1 6 3 2 4 . . 10 4 1 . . . . . . . 13 13 . . . . 1 18 Special . | . . . . . . . . . . . . . . . . . . . . . . . . . . . Kinetic 691 | 7 67 25 83 138 74 . . . . 145 37 . 30 22 2 6 34 2 . 16 2 . . . 1 . Thermal 511 | 7 67 50 111 43 24 7 . . 12 106 9 11 4 8 1 6 17 . 13 13 . 2 . . . . Explosive 49 | . . 1 6 3 2 4 . . 10 4 . . . . . . . . . . . . . . 1 18 Electromagnetic 57 | . . . . . . . . . . 52 1 . . . . . . . . . . . . . . 4 Entropic 11 | . . . . . . . . . . . . . . . . . . . . . . . . . . 11 Robot Hit Streak 24 | 7 10 10 11 12 24 6 . . 3 11 7 . 11 13 . 5 10 2 10 11 9 . . . 3 7 Robot Miss Streak 8 | 1 4 7 7 6 4 . . . 2 8 6 . 1 1 . 1 4 1 . 1 . . . . 2 5 Penetration Max 1 | . . . . . . . . . . 1 . . 1 1 . . . . . . . . . . . 1 Secondary Targets 8 | . 1 . 1 . 1 . . . . 2 . . 1 . . . 1 . . 1 . . . . . . Max Gunslinging Chain 1 | . 1 . 1 . 1 . . . . 1 . . 1 . . . 1 . . 1 . . . . . . Capacitor 13 | . . . . . . . . . . . . . . . . . . . . . . . . . . 13 Shots Hit Robots 845 | 11 87 47 100 106 63 3 7 . 8 207 25 14 29 23 . 8 36 1 10 15 2 4 2 6 10 21 Core Hits 478 | 5 32 21 69 59 40 7 1 . 21 98 11 5 13 7 . 3 11 1 16 11 2 2 1 4 8 30 Critical Kills 2 | . . . . . . . . . . . . . 2 . . . . . . . . . . . . . Critical Parts Destroyed 12 | . . . . 1 . . . . . 1 . . 2 1 . . 1 . . 3 . . . . 3 . Critical Strikes 38 | . 4 1 4 2 5 . . . 1 3 . 1 4 1 . . 1 . . 3 . . 1 1 5 1 Burn 12 | . 4 1 4 . . . . . 1 2 . . . . . . . . . . . . . . . . Destroy 14 | . . . . 1 . . . . . 1 . . 4 1 . . 1 . . 3 . . . . 3 . Blast 5 | . . . . 1 4 . . . . . . . . . . . . . . . . . . . . . Sever 1 | . . . . . 1 . . . . . . . . . . . . . . . . . . . . . Impale 5 | . . . . . . . . . . . . 1 . . . . . . . . . . 1 1 2 . Sunder 1 | . . . . . . . . . . . . . . . . . . . . . . . . . . 1 Melee Attacks 152 | . . . . . 32 2 8 . . 15 3 25 . . 1 . . . . . 6 14 4 8 24 10 Impact . | . . . . . . . . . . . . . . . . . . . . . . . . . . . Slashing 42 | . . . . . 32 2 8 . . . . . . . . . . . . . . . . . . . Piercing 110 | . . . . . . . . . . 15 3 25 . . 1 . . . . . 6 14 4 8 24 10 Sneak Attacks 13 | . . . . . 3 . . . . 1 . 2 . . . . . . . . . 3 . 3 . 1 Combat Hostiles . | . . . . . . . . . . . . . . . . . . . . . . . . . . . Follow-up Attacks . | . . . . . . . . . . . . . . . . . . . . . . . . . . . Damage Inflicted 27157 | 114 879 616 2876 2415 1745 275 376 . 972 5353 577 523 805 720 . 248 626 27 1188 858 61 287 106 430 627 4453 Guns 12172 | 114 879 616 1147 1279 866 38 . . 128 3793 528 . 805 720 . 248 626 27 . 332 26 . . . . . Cannons 2970 | . . . 678 849 357 26 . . . 305 31 . . . . . . . . . 35 . . . 19 670 Explosions 9447 | . . . 1051 287 237 211 . . 844 1157 18 . . . . . . . 1188 526 . . . . 277 3651 Melee 2568 | . . . . . 285 . 376 . . 98 . 523 . . . . . . . . . 287 106 430 331 132 Ramming . | . . . . . . . . . . . . . . . . . . . . . . . . . . . Kinetic 8149 | 40 354 185 717 1359 801 . . . . 2005 509 . 710 512 . 142 376 27 . 332 61 . . . 19 . Thermal 7711 | 74 525 431 1108 769 422 64 . . 128 1673 50 . 95 208 . 106 250 . 1188 526 . . . . . 94 Explosive 7379 | . . . 1051 287 237 211 . . 844 915 . . . . . . . . . . . . . . 277 3557 Electromagnetic 817 | . . . . . . . . . . 662 18 . . . . . . . . . . . . . . 137 Impact . | . . . . . . . . . . . . . . . . . . . . . . . . . . . Slashing 661 | . . . . . 285 . 376 . . . . . . . . . . . . . . . . . . . Piercing 1907 | . . . . . . . . . . 98 . 523 . . . . . . . . . 287 106 430 331 132 Entropic 533 | . . . . . . . . . . . . . . . . . . . . . . . . . . 533 Highest Corruption 10 | . 3 . . . 2 2 2 2 2 5 . . 5 5 5 1 2 2 4 4 . . 1 . 4 10 Average Corruption 2 | . 2 . . . 2 2 2 2 2 3 . . 5 5 5 1 1 2 2 4 . . 1 . 3 7 Corruption Purged . | . . . . . . . . . . . . . . . . . . . . . . . . . . . Corruption Blocked . | . . . . . . . . . . . . . . . . . . . . . . . . . . . Effects 140 | . 7 . . . 3 16 5 15 5 29 . . 10 2 7 . 6 6 1 11 . . . . 6 11 Message Errors 38 | . 3 . . . . 3 1 5 2 8 . . 3 1 4 . . 1 1 2 . . . . . 4 Matter Fused 30 | . . . . . 1 2 2 4 1 4 . . 3 1 1 . 2 2 . 3 . . . . 1 3 Heat Flow Errors 16 | . 1 . . . 1 3 . 1 . 3 . . 1 . . . 1 . . 3 . . . . 2 . Energy Discharges 22 | . 3 . . . . 2 2 3 1 3 . . . . . . 2 1 . 3 . . . . . 2 Parts Rejected 3 | . . . . . . . . . . 1 . . . . . . . . . . . . . . 2 . Data Loss (minor) 18 | . . . . . 1 4 . 2 1 4 . . 1 . 1 . 1 2 . . . . . . . 1 Data Loss (major) 2 | . . . . . . 1 . . . . . . 1 . . . . . . . . . . . . . Misfires 4 | . . . . . . . . . . 3 . . . . . . . . . . . . . . 1 . Alerts 2 | . . . . . . . . . . . . . 1 . 1 . . . . . . . . . . . Misdirections 1 | . . . . . . . . . . . . . . . . . . . . . . . . . . 1 Weapon Failures 4 | . . . . . . 1 . . . 3 . . . . . . . . . . . . . . . . Overload Shots . | . . . . . . . . . . . . . . . . . . . . . . . . . . . Overflow Damage 1381 | . . . 34 22 119 . 182 . 71 65 . 100 . . . . . . 52 . . 90 33 . 123 490 Projectiles 247 | . . . 25 22 21 . . . . 10 . . . . . . . . . . . . . . . 169 Explosions 546 | . . . 9 . 15 . . . 71 40 . . . . . . . . 52 . . . . . 80 279 Melee 588 | . . . . . 83 . 182 . . 15 . 100 . . . . . . . . . 90 33 . 43 42 Knockbacks 6 | . . . . 4 2 . . . . . . . . . . . . . . . . . . . . . Impact . | . . . . . . . . . . . . . . . . . . . . . . . . . . . Kinetic 6 | . . . . 4 2 . . . . . . . . . . . . . . . . . . . . . Secondary . | . . . . . . . . . . . . . . . . . . . . . . . . . . . Self-Inflicted Damage 577 | . . . . 22 . . . . 227 328 . . . . . . . . . . . . . . . . Shots 11 | . . . . 1 . . . . 5 5 . . . . . . . . . . . . . . . . Rammed . | . . . . . . . . . . . . . . . . . . . . . . . . . . . Targets Rammed . | . . . . . . . . . . . . . . . . . . . . . . . . . . . Kicked . | . . . . . . . . . . . . . . . . . . . . . . . . . . . Crushed . | . . . . . . . . . . . . . . . . . . . . . . . . . . . Highest Temperature 400 | 50 208 192 310 226 178 257 . 264 30 313 173 24 242 75 33 72 261 . 200 400 . . 214 48 230 213 Average Temperature 76 | 22 56 75 76 84 38 103 . 136 8 67 69 9 137 33 17 34 122 . 145 144 . . 110 22 83 61 Received Heat Transfer 3088 | . 432 204 225 414 189 18 . . 66 774 117 98 . 36 . 12 36 9 90 239 9 . 12 9 . 99 Effects 10 | . . . 1 1 . . . . . 3 . . . . . . 1 . 2 2 . . . . . . Energy Bleed 4 | . . . . 1 . . . . . . . . . . . . 1 . 2 . . . . . . . Interference 6 | . . . 1 . . . . . . 3 . . . . . . . . . 2 . . . . . . Siege Activations 5 | . . . . . . . . . . . . . . 2 . 1 1 . . 1 . . . . . . Total Turns 98 | . . . . . . . . . . . . . . 21 . 10 64 . . 3 . . . . . . Longest Duration 64 | . . . . . . . . . . . . . . 11 . 10 64 . . 3 . . . . . . Martial Activations . | . . . . . . . . . . . . . . . . . . . . . . . . . . . Shielding Activations . | . . . . . . . . . . . . . . . . . . . . . . . . . . . Robots Disrupted . | . . . . . . . . . . . . . . . . . . . . . . . . . . . Combat Hostiles . | . . . . . . . . . . . . . . . . . . . . . . . . . . . Robots Corrupted 1 | . . . . . . . . . . . . . . . . . . . . . . . . . . 1 Combat Hostiles 1 | . . . . . . . . . . . . . . . . . . . . . . . . . . 1 Parts Fried 4 | . . . . . . . . . . 3 . . . . . . . . 1 . . . . . . . Impact Corruptions . | . . . . . . . . . . . . . . . . . . . . . . . . . . . Robots Melted . | . . . . . . . . . . . . . . . . . . . . . . . . . . . Combat Hostiles . | . . . . . . . . . . . . . . . . . . . . . . . . . . . Parts Melted 27 | 1 6 4 3 . . 1 . . . 7 . . . . . . . . 4 1 . . . . . . Heat Transferred 14586 | 222 1850 1090 2538 1375 925 112 . . 259 2864 87 . 111 259 . 111 333 . 1680 720 . . . . . 50 Parts Sabotaged . | . . . . . . . . . . . . . . . . . . . . . . . . . . . Parts Stolen . | . . . . . . . . . . . . . . . . . . . . . . . . . . . Parts Stripped . | . . . . . . . . . . . . . . . . . . . . . . . . . . . Power Chain Reactions 4 | . . . . . . . . . . 3 . . . . . . . . . . . . . . . 1 Alert | -11 -10 -9 -9 -8 -7 -7 -7 -7 -6 -6 -5 -5 -5 -5 -5 -4 -4 -4 -4 -3 -3 -3 -3 -2 -2 -1 ------- Run | Yrd Mat Mat Sto Mat Fac Low Low Zio Pro Fac Fac Ext Cet Arc Hub Fac Upp Upp War Pro Res Qua Sec Res Tes Acc Maximum Alert Level 3 | . . . 1 2 1 . . . . 2 1 1 . 1 2 . . . . . . . . . 1 3 Low Security (%) 68 | 100 100 100 27 13 95 . . . . 50 24 84 100 79 36 100 . . . . 100 100 100 100 76 19 Level 1 16 | . . . 72 32 4 . . . . 7 75 15 . 20 38 . . . . . . . . . 23 7 Level 2 13 | . . . . 53 . . . . . 42 . . . . 25 . . . . . . . . . . 45 Level 3 . | . . . . . . . . . . . . . . . . . . . . . . . . . . 27 Level 4 . | . . . . . . . . . . . . . . . . . . . . . . . . . . . Level 5 . | . . . . . . . . . . . . . . . . . . . . . . . . . . . High Security . | . . . . . . . . . . . . . . . . . . . . . . . . . . . Max Security . | . . . . . . . . . . . . . . . . . . . . . . . . . . . Peak Influence 771 | 5 112 98 396 568 247 . . . . 545 257 246 173 213 462 172 . . . . 24 50 121 71 238 771 Initial 257 | . . . 14 156 247 . . . . 11 257 107 107 43 60 172 . . . . . . 8 67 . 136 Average 167 | . 38 43 253 374 123 . . . . 234 214 65 112 153 266 139 . . . . 4 12 36 37 89 517 Influence Increases 8543 | 15 385 293 1030 894 539 100 35 . 230 1038 174 589 301 220 472 55 80 . 160 95 84 135 173 37 357 1052 Destroy 0b10 Robot/C 4140 | . 220 200 560 520 280 80 20 . 200 540 80 300 160 80 160 20 80 . 160 80 . . 20 . 80 300 Destroy 0b10 Robot/NC 430 | 15 20 10 90 30 35 . 5 . . 75 5 20 10 5 10 . . . . 5 . 20 . 15 5 55 Destroy Leader 912 | . 54 62 146 134 98 20 10 . 30 164 20 32 . . 20 . . . . 10 . 2 10 4 20 76 Allied During Kill 561 | . . . 12 . . . . . . . . 175 104 85 185 . . . . . . . . . . . Successful Hack 389 | . 16 12 24 9 2 . . . . 33 10 15 7 . . 12 . . . . 74 52 66 . 57 . Select Force Hacks 110 | . 30 . . 30 . . . . . . . . . . 50 . . . . . . . . . . . Disable Machine 495 | . . . 120 75 45 . . . . 60 15 . . 30 15 15 . . . . . 30 15 . 60 15 Destroy Structure 906 | . . 9 48 51 49 . . . . 76 14 32 20 20 32 8 . . . . 10 16 2 3 90 426 Partial Spotted 30 | . . . . . . . . . . . . . . . . . . . . . . . 15 15 . . Lose Combat Pursuer 570 | . 45 . 30 45 30 . . . . 90 30 15 . . . . . . . . . 15 45 . 45 180 Influence Decreases 7789 | 15 385 258 693 720 1009 176 35 . 212 529 480 618 385 155 293 320 131 36 24 231 82 122 67 158 130 525 Entered New Map 1730 | . . . 21 216 299 29 . . . 7 270 114 85 65 113 180 33 8 . 136 . 2 7 54 . 91 Time Decay 4997 | 15 375 228 482 474 640 147 35 . 202 395 170 339 230 80 100 140 98 28 24 95 82 110 60 104 130 214 Lost Part 572 | . 10 20 . 30 50 . . . 10 127 40 45 10 10 . . . . . . . . . . . 220 Lost Ally 340 | . . 10 40 . 20 . . . . . . 120 60 . 80 . . . . . . 10 . . . . Purge Threat 150 | . . . 150 . . . . . . . . . . . . . . . . . . . . . . . Squads Dispatched 53 | . 3 1 5 4 6 . . . . 10 1 1 . . 3 1 . . . . 4 2 2 2 5 3 Investigation 9 | . 2 . . 1 . . . . . 1 1 . . . 3 . . . . . 1 . . . . . Extermination 15 | . . . . . 4 . . . . 4 . . . . . 1 . . . . 1 1 . . 1 3 Reinforcement 22 | . 1 1 3 2 2 . . . . 4 . 1 . . . . . . . . 2 1 2 2 1 . Assault 4 | . . . 2 1 . . . . . 1 . . . . . . . . . . . . . . . . Garrison 3 | . . . . . . . . . . . . . . . . . . . . . . . . . 3 . Intercept . | . . . . . . . . . . . . . . . . . . . . . . . . . . . Searches Triggered . | . . . . . . . . . . . . . . . . . . . . . . . . . . . Unchained Authorized 2 | . . . . . . . . . . . . . . . . . . . . . . . . . 1 1 Construction Impeded 3 | . . . . 1 . . . . . 1 . 1 . . . . . . . . . . . . . . Haulers Reinforced 2 | . . . . . . . . . . 1 . . . . . . . . . . . . . 1 . . Active Scanning Responses . | . . . . . . . . . . . . . . . . . . . . . . . . . . . Cargo Convoy Interrupts . | . . . . . . . . . . . . . . . . . . . . . . . . . . . Stealth | -11 -10 -9 -9 -8 -7 -7 -7 -7 -6 -6 -5 -5 -5 -5 -5 -4 -4 -4 -4 -3 -3 -3 -3 -2 -2 -1 --------- Run | Yrd Mat Mat Sto Mat Fac Low Low Zio Pro Fac Fac Ext Cet Arc Hub Fac Upp Upp War Pro Res Qua Sec Res Tes Acc Distress Signals 29 | . . 2 3 4 2 . . . . 1 . 3 2 . . . . . . . 3 . 2 4 1 2 Communications Jammed . | . . . . . . . . . . . . . . . . . . . . . . . . . . . Distress Signals . | . . . . . . . . . . . . . . . . . . . . . . . . . . . Times Spotted 377 | . 22 12 39 38 20 4 1 . 10 46 8 16 12 8 . 2 4 1 23 5 2 5 24 10 10 55 Peak Tracking Total 18 | . 2 5 7 5 4 3 1 . 3 9 3 5 5 2 1 2 3 1 12 4 1 2 18 5 5 17 Tactical Retreats 22 | . 3 . 2 2 2 . . . . 3 2 1 . . . . . . . . . 1 2 . 1 3 Traps | -11 -10 -9 -9 -8 -7 -7 -7 -7 -6 -6 -5 -5 -5 -5 -5 -4 -4 -4 -4 -3 -3 -3 -3 -2 -2 -1 ------- Run | Yrd Mat Mat Sto Mat Fac Low Low Zio Pro Fac Fac Ext Cet Arc Hub Fac Upp Upp War Pro Res Qua Sec Res Tes Acc Traps Triggered 12 | . 3 . . 2 1 . . . . 2 1 1 . . . . . . . . 1 . 1 . . . Indirectly . | . . . . . . . . . . . . . . . . . . . . . . . . . . . Trap Hack Attempts . | . . . . . . . . . . . . . . . . . . . . . . . . . . . Triggered . | . . . . . . . . . . . . . . . . . . . . . . . . . . . Disarmed . | . . . . . . . . . . . . . . . . . . . . . . . . . . . Reprogrammed 4 | . . . . . . . . . . . . . . . . . . . . . . . . . 4 . Reused . | . . . . . . . . . . . . . . . . . . . . . . . . . . . Traps Extracted . | . . . . . . . . . . . . . . . . . . . . . . . . . . . Installed . | . . . . . . . . . . . . . . . . . . . . . . . . . . . Triggered . | . . . . . . . . . . . . . . . . . . . . . . . . . . . Machines | -11 -10 -9 -9 -8 -7 -7 -7 -7 -6 -6 -5 -5 -5 -5 -5 -4 -4 -4 -4 -3 -3 -3 -3 -2 -2 -1 ---------- Run | Yrd Mat Mat Sto Mat Fac Low Low Zio Pro Fac Fac Ext Cet Arc Hub Fac Upp Upp War Pro Res Qua Sec Res Tes Acc Machines Disabled 38 | . . . 8 5 3 3 . . . 4 1 2 . 2 1 1 . . . . . 2 1 . 4 1 Max in Single Turn 3 | . . . 1 1 1 3 . . . 1 1 . . 1 1 1 . . . . . 1 1 . 1 1 Garrison Access 4 | . . . . 1 . . . . . 1 . . . . . . . . . . 1 . . 1 . . Network Hub 1 | . . . . . . . . . . . . . . . 1 . . . . . . . . . . . Machines Repaired . | . . . . . . . . . . . . . . . . . . . . . . . . . . . Machines Dismantled . | . . . . . . . . . . . . . . . . . . . . . . . . . . . Machines Sabotaged 1 | . . . . . . . . . . . . . . . 1 . . . . . . . . . . . Overloaded Fab Kills . | . . . . . . . . . . . . . . . . . . . . . . . . . . . Hacking | -11 -10 -9 -9 -8 -7 -7 -7 -7 -6 -6 -5 -5 -5 -5 -5 -4 -4 -4 -4 -3 -3 -3 -3 -2 -2 -1 --------- Run | Yrd Mat Mat Sto Mat Fac Low Low Zio Pro Fac Fac Ext Cet Arc Hub Fac Upp Upp War Pro Res Qua Sec Res Tes Acc Machines Accessed 89 | . 10 2 5 5 5 . . 1 . 14 5 8 1 . 3 1 2 . 2 . 7 11 4 . 3 . Terminals 68 | . 8 2 5 3 3 . . . . 6 4 7 1 . 3 1 1 . . . 6 11 4 . 3 . Fabricators 1 | . . . . . . . . . . 1 . . . . . . . . . . . . . . . . Repair Stations 3 | . . . . . 1 . . . . . 1 1 . . . . . . . . . . . . . . Recycling Units 6 | . 2 . . 1 . . . . . 3 . . . . . . . . . . . . . . . . Scanalyzers 4 | . . . . . 1 . . . . 2 . . . . . . . . . . 1 . . . . . Garrison Access 3 | . . . . 1 . . . . . 2 . . . . . . . . . . . . . . . . Total Hacks 259 | . 22 11 18 16 12 . . 7 . 30 16 20 4 . 9 6 2 . 3 . 25 31 15 . 12 . Successful 128 | . 13 7 10 4 4 . . 7 . 7 12 10 1 . 5 2 2 . 3 . 14 14 5 . 8 . Failed 131 | . 9 4 8 12 8 . . . . 23 4 10 3 . 4 4 . . . . 11 17 10 . 4 . Catastrophic 25 | . 1 1 3 . 1 . . . . 7 . 1 . . . . . . . . 3 3 4 . 1 . Database Lockouts . | . . . . . . . . . . . . . . . . . . . . . . . . . . . Manual 103 | . 17 10 7 7 1 . . . . 2 3 . 1 . 9 6 . . . . 9 12 13 . 6 . Terminals 209 | . 19 11 18 12 6 . . . . 16 14 15 4 . 9 6 1 . . . 20 31 15 . 12 . Fabricators 1 | . . . . . . . . . . 1 . . . . . . . . . . . . . . . . Repair Stations 12 | . . . . . 5 . . . . . 2 5 . . . . . . . . . . . . . . Recycling Units 9 | . 3 . . 3 . . . . . 3 . . . . . . . . . . . . . . . . Scanalyzers 13 | . . . . . 1 . . . . 7 . . . . . . . . . . 5 . . . . . Garrison Access 4 | . . . . 1 . . . . . 3 . . . . . . . . . . . . . . . . Terminal Hacks 76 | . 4 1 7 2 1 . . 7 . 4 9 7 1 . 2 . 2 . 3 . 7 11 2 . 6 . Record 17 | . . . . . . . . . . 1 2 2 . . . . 1 . 2 . 2 7 . . . . Part Schematic 8 | . . . . . 1 . . 7 . . . . . . . . . . . . . . . . . . Robot Analysis 1 | . . . . . . . . . . . 1 . . . . . . . . . . . . . . . Prototype ID Bank 1 | . 1 . . . . . . . . . . . . . . . . . . . . . . . . . Open Door 13 | . . . 2 . . . . . . . 1 5 1 . . . 1 . 1 . 1 1 . . . . Level Access Points 3 | . . . . . . . . . . . . . . . . . . . . . . 1 1 . 1 . Branch Access Points 2 | . . . . . . . . . . . 1 . . . . . . . . . 1 . . . . . Terminal Index 3 | . . . . . . . . . . . 1 . . . 1 . . . . . . 1 . . . . Alert Level 2 | . . . 1 . . . . . . . . . . . . . . . . . . 1 . . . . Unreport Threat 1 | . . . 1 . . . . . . . . . . . . . . . . . . . . . . . Locate Traps 7 | . . . 1 1 . . . . . 1 . . . . 1 . . . . . 1 . . . 2 . Reprogram Traps 2 | . . . . . . . . . . . . . . . . . . . . . . . . . 2 . Patrol Status 1 | . 1 . . . . . . . . . . . . . . . . . . . . . . . . . Recall Investigation 1 | . . . . . . . . . . . 1 . . . . . . . . . . . . . . . Hauler Manifests 1 | . . 1 . . . . . . . . . . . . . . . . . . . . . . . . Registered Components 1 | . . . 1 . . . . . . . . . . . . . . . . . . . . . . . Registered Prototypes 1 | . . . . . . . . . . . . . . . . . . . . . 1 . . . . . Zone Layout 11 | . 2 . 1 1 . . . . . 2 2 . . . . . . . . . 1 . 1 . 1 . Fabricator Hacks . | . . . . . . . . . . . . . . . . . . . . . . . . . . . Repair Station Hacks 8 | . . . . . 3 . . . . . 2 3 . . . . . . . . . . . . . . Scan Component 5 | . . . . . 2 . . . . . 1 2 . . . . . . . . . . . . . . Repair 3 | . . . . . 1 . . . . . 1 1 . . . . . . . . . . . . . . Recycling Unit Hacks 1 | . . . . . . . . . . 1 . . . . . . . . . . . . . . . . Retrieve Components 1 | . . . . . . . . . . 1 . . . . . . . . . . . . . . . . Scanalyzer 6 | . . . . . . . . . . 1 . . . . . . . . . . 5 . . . . . Retrieve Study 6 | . . . . . . . . . . 1 . . . . . . . . . . 5 . . . . . Garrison Access Hacks 2 | . . . . 1 . . . . . 1 . . . . . . . . . . . . . . . . Seal Access 2 | . . . . 1 . . . . . 1 . . . . . . . . . . . . . . . . Unauthorized Hacks 34 | . 8 6 3 1 . . . . . . 1 . . . 3 2 . . . . 2 3 3 . 2 . Terminals 32 | . 7 6 3 . . . . . . . 1 . . . 3 2 . . . . 2 3 3 . 2 . Assimilate 4 | . . 1 . . . . . . . . . . . . . . . . . . . 1 2 . . . Botnet 14 | . 1 2 2 . . . . . . . 1 . . . . 1 . . . . 2 2 1 . 2 . Operators 3 | . . 1 1 . . . . . . . . . . . . 1 . . . . . . . . . . Skim 8 | . 6 2 . . . . . . . . . . . . . . . . . . . . . . . . Sabotage 3 | . . . . . . . . . . . . . . . 3 . . . . . . . . . . . Fabricators . | . . . . . . . . . . . . . . . . . . . . . . . . . . . Repair Stations . | . . . . . . . . . . . . . . . . . . . . . . . . . . . Recycling Units 2 | . 1 . . 1 . . . . . . . . . . . . . . . . . . . . . . Tunnel 2 | . 1 . . 1 . . . . . . . . . . . . . . . . . . . . . . Scanalyzers . | . . . . . . . . . . . . . . . . . . . . . . . . . . . Garrison Access . | . . . . . . . . . . . . . . . . . . . . . . . . . . . Data Cores Recovered 2 | . 1 . . . . . . . . . 1 . . . . . . . . . . . . . . . Used 1 | . . . . . . . . . . . 1 . . . . . . . . . . . . . . . Hacking Detections 58 | . 7 2 4 3 5 . . . . 12 3 4 . . 3 1 . . . . 3 6 4 . 1 . Full Trace Events . | . . . . . . . . . . . . . . . . . . . . . . . . . . . Feedback Events . | . . . . . . . . . . . . . . . . . . . . . . . . . . . Feedback Blocked . | . . . . . . . . . . . . . . . . . . . . . . . . . . . Robot Schematics Acquired 3 | . . . . . . . . 3 . . . . . . . . . . . . . . . . . . Robots Built . | . . . . . . . . . . . . . . . . . . . . . . . . . . . Authchips . | . . . . . . . . . . . . . . . . . . . . . . . . . . . Time . | . . . . . . . . . . . . . . . . . . . . . . . . . . . Total Robot Build Rating . | . . . . . . . . . . . . . . . . . . . . . . . . . . . Part Schematics Acquired 22 | . . . . . 1 . . 21 . . . . . . . . . . . . . . . . . . Parts Built . | . . . . . . . . . . . . . . . . . . . . . . . . . . . Authchips . | . . . . . . . . . . . . . . . . . . . . . . . . . . . Time . | . . . . . . . . . . . . . . . . . . . . . . . . . . . Total Part Build Rating . | . . . . . . . . . . . . . . . . . . . . . . . . . . . Part Studies Acquired 5 | . . . . . . . . . . 1 . . . . . . . . . . 4 . . . . . Parts Repaired 3 | . . . . . 1 . . . . . 1 1 . . . . . . . . . . . . . . Time 173 | . . . . . 53 . . . . . 50 70 . . . . . . . . . . . . . . Parts Recycled . | . . . . . . . . . . . . . . . . . . . . . . . . . . . Recycled Matter . | . . . . . . . . . . . . . . . . . . . . . . . . . . . Retrieved Matter . | . . . . . . . . . . . . . . . . . . . . . . . . . . . Retrieved Components 10 | . . . . . . . . . . 10 . . . . . . . . . . . . . . . . Parts Scanalyzed . | . . . . . . . . . . . . . . . . . . . . . . . . . . . Part Schematics Acquired . | . . . . . . . . . . . . . . . . . . . . . . . . . . . Parts Damaged . | . . . . . . . . . . . . . . . . . . . . . . . . . . . Bothacking | -11 -10 -9 -9 -8 -7 -7 -7 -7 -6 -6 -5 -5 -5 -5 -5 -4 -4 -4 -4 -3 -3 -3 -3 -2 -2 -1 ------------ Run | Yrd Mat Mat Sto Mat Fac Low Low Zio Pro Fac Fac Ext Cet Arc Hub Fac Upp Upp War Pro Res Qua Sec Res Tes Acc Used RIF Installer . | . . . . . . . . . . . . . . . . . . . . . . . . . . . Robots Hacked . | . . . . . . . . . . . . . . . . . . . . . . . . . . . Non-combat . | . . . . . . . . . . . . . . . . . . . . . . . . . . . Combat . | . . . . . . . . . . . . . . . . . . . . . . . . . . . Robot Hacks Applied . | . . . . . . . . . . . . . . . . . . . . . . . . . . . Relay Couplers Released 3 | . . . . . . . . . . . . . . . . . . . . . 2 . . 1 . . Machine Destruction 3 | . . . . . . . . . . . . . . . . . . . . . 2 . . 1 . . Fabnet Peak Effective % . | . . . . . . . . . . . . . . . . . . . . . . . . . . . Robots Rewired 3 | . . . . . . . . . . . . 3 . . . . . . . . . . . . . . Allies Hacked . | . . . . . . . . . . . . . . . . . . . . . . . . . . . Hacks Repelled . | . . . . . . . . . . . . . . . . . . . . . . . . . . . Allies | -11 -10 -9 -9 -8 -7 -7 -7 -7 -6 -6 -5 -5 -5 -5 -5 -4 -4 -4 -4 -3 -3 -3 -3 -2 -2 -1 -------- Run | Yrd Mat Mat Sto Mat Fac Low Low Zio Pro Fac Fac Ext Cet Arc Hub Fac Upp Upp War Pro Res Qua Sec Res Tes Acc Total Allies 22 | . . 1 2 . . 2 . . . . . 11 5 . . . . . . . . 1 . . . . Largest Group 11 | . . 1 2 . . 2 . . . . . 11 7 5 4 . . . . . . 1 . . . . Highest-Rated Group 661 | . . 10 62 . . 56 . . . . . 454 661 526 384 . . . . . . 10 . . . . Highest-Rated Ally 159 | . . 10 31 . . 31 . . . . . 159 142 142 96 . . . . . . 10 . . . . Total Orders 7 | . . . . . 7 . . . . . . . . . . . . . . . . . . . . . EXPLORE 6 | . . . . . 6 . . . . . . . . . . . . . . . . . . . . . RETURN 1 | . . . . . 1 . . . . . . . . . . . . . . . . . . . . . Ally Attacks 268 | . . . 11 . . . . . . . . 143 45 36 33 . . . . . . . . . . . Total Damage 6878 | . . . 189 . . . . . . . . 2882 1214 1313 1280 . . . . . . . . . . . Kills 37 | . . . 2 . . . . . . . . 16 6 3 10 . . . . . . . . . . . Allies Corrupted 3 | . . . . . . . . . . . . . . . 2 . . . . . . 1 . . . . Allies Melted 1 | . . . . . . . . . . . . 1 . . . . . . . . . . . . . . Intel | -11 -10 -9 -9 -8 -7 -7 -7 -7 -6 -6 -5 -5 -5 -5 -5 -4 -4 -4 -4 -3 -3 -3 -3 -2 -2 -1 ------- Run | Yrd Mat Mat Sto Mat Fac Low Low Zio Pro Fac Fac Ext Cet Arc Hub Fac Upp Upp War Pro Res Qua Sec Res Tes Acc Active Infowar (turns) 10962 | 6 146 . . . 1777 989 643 1104 8 825 146 665 . . 180 280 527 435 1148 344 475 300 136 228 272 328 Sensors 10034 | . . . . . 1777 989 643 1104 8 825 102 . . . 180 280 527 435 1148 344 475 300 136 228 272 261 Terrain 1739 | . . . . . . . . . . . . . . . . . . . . . 475 300 136 228 272 328 Seismic 152 | 6 146 . . . . . . . . . . . . . . . . . . . . . . . . . Cloaking 709 | . . . . . . . . . . . 44 665 . . . . . . . . . . . . . . Robot Analysis Total 1 | . . . . . . . . . . . 1 . . . . . . . . . . . . . . . Derelict Logs Recovered 6 | . . . . . . 1 1 1 . . . . . . . . 2 1 . . . . . . . . Drone Launches 7 | . . . . . 7 . . . . . . . . . . . . . . . . . . . . . Drone Recoveries 5 | . . . . . 5 . . . . . . . . . . . . . . . . . . . . . Exploration | -11 -10 -9 -9 -8 -7 -7 -7 -7 -6 -6 -5 -5 -5 -5 -5 -4 -4 -4 -4 -3 -3 -3 -3 -2 -2 -1 ------------- Run | Yrd Mat Mat Sto Mat Fac Low Low Zio Pro Fac Fac Ext Cet Arc Hub Fac Upp Upp War Pro Res Qua Sec Res Tes Acc Turns Passed 19793 | 128 1365 526 1330 1217 2299 989 643 1104 462 2344 344 1140 494 169 216 280 649 435 1247 560 475 300 136 228 272 441 Spaces Moved 12420 | 56 573 320 529 477 899 506 319 808 303 1395 422 610 215 64 101 150 335 260 724 298 287 879 368 449 358 715 Core 77 | 4 . . . . . . . . . . . . . . . . . . . . . . . . . 73 Treads 2535 | 52 117 . . . . . . . . . . . 184 64 101 150 335 260 724 298 250 . . . . . Legs 6012 | . 456 320 529 477 899 506 319 808 303 1395 . . . . . . . . . . . . . . . . Wheels . | . . . . . . . . . . . . . . . . . . . . . . . . . . . Hover 2412 | . . . . . . . . . . . 422 610 31 . . . . . . . . . . 349 358 642 Flight 1384 | . . . . . . . . . . . . . . . . . . . . . 37 879 368 100 . . Fastest Speed 15 | 50 120 120 120 190 185 185 190 110 115 117 52 52 128 160 160 163 163 163 162 162 15 15 15 16 42 38 Average Speed 119 | 152 128 120 178 190 188 187 190 127 136 120 52 73 181 160 160 163 163 163 162 162 142 15 15 37 42 43 Slowest Speed 296 | 160 160 190 190 190 190 190 190 190 195 196 52 141 296 160 163 163 163 163 163 162 240 15 16 102 45 106 Overloaded Moves . | . . . . . . . . . . . . . . . . . . . . . . . . . . . Propulsion Burnouts . | . . . . . . . . . . . . . . . . . . . . . . . . . . . Robots Hopped . | . . . . . . . . . . . . . . . . . . . . . . . . . . . Potential Cave-ins 2 | . . . . . . . . . . . . 2 . . . . . . . . . . . . . . Cave-ins Triggered . | . . . . . . . . . . . . . . . . . . . . . . . . . . . Teleports 2 | . . . . . . . . . . . . . . . . . . . . . . 1 . . . 1 Exploration Rate (%) 45 | 4 92 21 75 46 43 70 49 82 54 32 13 67 66 75 13 4 58 45 77 56 10 77 19 14 39 24 Regions Visited 26 Branch Regions 16 Pre-discovered Areas 7 | . 3 . . 1 . 1 . 1 . . . . . . . . . 1 . . . . . . . . Known Exits Taken 23 | . . 1 1 . 1 1 1 1 1 1 1 1 1 1 1 1 1 1 1 1 1 1 1 1 1 . Unknown Exits Taken 3 | 1 1 . . 1 . . . . . . . . . . . . . . . . . . . . . . Scrap Searched 11 | . . . . . . 1 1 3 1 . . . . . . . 1 4 . . . . . . . . Spaces Dug 186 | . . 10 13 . 28 21 . . 50 17 9 12 . . 1 . . . . . 5 8 1 1 6 4 Terrain Destroyed 747 | . . 10 50 47 50 42 . . 130 105 9 12 2 3 1 4 21 . 4 35 5 8 1 1 28 179 Melee 65 | . . . . . 23 2 . . . 12 3 1 . . 1 . . . . . 5 6 1 1 6 4 Projectile 122 | . . . 15 25 7 2 . . 1 5 6 11 2 3 . 4 21 . . 5 . 2 . . . 13 AOE 560 | . . 10 35 22 20 38 . . 129 88 . . . . . . . . 4 30 . . . . 22 162 Terrain Rammed . | . . . . . . . . . . . . . . . . . . . . . . . . . . . Walls Destroyed . | . . . . . . . . . . . . . . . . . . . . . . . . . . . Machines Disabled . | . . . . . . . . . . . . . . . . . . . . . . . . . . . Actions | -11 -10 -9 -9 -8 -7 -7 -7 -7 -6 -6 -5 -5 -5 -5 -5 -4 -4 -4 -4 -3 -3 -3 -3 -2 -2 -1 --------- Run | Yrd Mat Mat Sto Mat Fac Low Low Zio Pro Fac Fac Ext Cet Arc Hub Fac Upp Upp War Pro Res Qua Sec Res Tes Acc Total 16025 | 83 1088 401 750 635 1363 529 345 894 327 1791 508 1242 291 109 150 174 398 270 782 344 350 1023 435 497 439 807 Wait 2164 | 8 424 34 87 48 345 6 7 61 1 144 22 545 29 26 42 14 32 8 22 21 11 115 55 2 35 20 Move 12394 | 55 572 319 528 476 898 505 318 807 302 1394 421 609 214 63 100 149 334 259 723 297 286 878 367 448 357 715 Hop . | . . . . . . . . . . . . . . . . . . . . . . . . . . . Pick Up 163 | 6 7 6 16 9 11 2 3 9 3 27 10 2 11 3 1 1 4 1 9 . 5 4 . 9 2 2 Fast Attach 63 | 7 . 1 . 3 2 . . . . 13 3 4 5 . 1 1 . . 1 . 3 2 2 7 5 3 Attach 78 | . 4 3 . 5 7 1 . 1 5 8 8 6 2 . . . . . . 1 8 2 1 2 2 12 Detach 41 | . 2 . . 3 1 . . 2 . 2 6 2 3 . . . . . . . 5 1 1 4 2 7 Swap 163 | . 4 7 19 9 14 4 5 2 1 41 5 3 3 2 3 1 7 . 4 4 5 2 4 7 5 2 Drop 177 | . 8 5 13 10 9 1 4 12 . 30 9 2 9 4 1 2 4 1 10 . 20 3 1 10 6 3 Fire 592 | 7 67 26 87 72 44 8 . . 15 112 21 11 15 11 1 6 17 1 13 21 1 2 . . 1 33 Melee 152 | . . . . . 32 2 8 . . 15 3 25 . . 1 . . . . . 6 14 4 8 24 10 Ram . | . . . . . . . . . . . . . . . . . . . . . . . . . . . Kick . | . . . . . . . . . . . . . . . . . . . . . . . . . . . Crush . | . . . . . . . . . . . . . . . . . . . . . . . . . . . Escape Stasis 18 | . . . . . . . . . . 5 . 13 . . . . . . . . . . . . . . Rewire 20 | . . . . . . . . . . . . 20 . . . . . . . . . . . . . . Trap . | . . . . . . . . . . . . . . . . . . . . . . . . . . . Miscellaneous . | . . . . . . . . . . . . . . . . . . . . . . . . . . . Route ------- -11/Scrapyard -10/Materials (discovered 5 exits: *Mat x3 / [*Min] / Sub) -9/Materials (discovered 4 exits: Mat x3 / *Sto) -9/Storage (discovered 2 exits: *Mat / Rec) -8/Materials (discovered 2 exits: *Fac x2) -7/Factory (discovered 3 exits: *Fac x2 / *Low) -7/Lower Caves -7/Lower Caves (discovered 2 exits: *Fac / *Zio) -7/Zion -6/Proximity Caves -6/Factory (discovered 2 exits: *Fac / Low) -5/Factory (discovered 4 exits: Upp x2 / *Ext x2) -5/Extension (discovered 2 exits: *Fac / *Cet) -5/Cetus (discovered 2 exits: *Fac / *Arc) -5/Archives -5/Hub_04(d) -4/Factory -4/Upper Caves -4/Upper Caves -4/Warlord -3/Proximity Caves -3/Research (discovered 3 exits: Arm / *Qua x2) -3/Quarantine (discovered 3 exits: Res / *Sec / *Frg) -3/Section 7 -2/Research -2/Testing -1/Access History --------- Turn | Location | Event 5 | -11/Scrapyard | Discovered new exit (range 16) 129 | -11/Scrapyard | Entered Materials 243 | -10/Materials | Discovered new exit (range 13) 315 | -10/Materials | Build established: Mutant 553 | -10/Materials | Discovered new exit (range 16) 878 | -10/Materials | Discovered new exit (range 7) 958 | -10/Materials | Discovered new exit (range 14) 1051 | -10/Materials | Build established: Scavenger-Mutant 1060 | -10/Materials | Learned location of 1 exit from Storage 1185 | -10/Materials | Learned location of Subcaves (-10) 1230 | -10/Materials | Loaded intel: 17 trap records 1263 | -10/Materials | Loaded intel: 1 repair station location 1333 | -10/Materials | Learned 2 Storage zone layouts 1373 | -10/Materials | Identified exit to Subcaves 1423 | -10/Materials | Learned Storage security intel 1484 | -10/Materials | Learned location of Storage (-9) 1494 | -10/Materials | Entered another Materials area 1494 | -9/Materials | Evolved 2 slots: Propulsion x1, Weapon x1 1495 | -9/Materials | Identified exit to Materials 1834 | -9/Materials | Build established: Scavenger-Gunner 1957 | -9/Materials | Discovered new exit (range 13) 2019 | -9/Materials | Identified exit to Storage 2020 | -9/Materials | Entered Storage 2021 | -9/Storage | Identified exit to Recycling 2038 | -9/Storage | Met a pair of Derelict thieves 2167 | -9/Storage | Destroyed 9 combat bots 3215 | -9/Storage | Discovered exit to Materials (range 16) 3350 | -9/Storage | Entered Materials 3350 | -8/Materials | Evolved 2 slots: Propulsion x1, Utility x1 3634 | -8/Materials | Build established: Scavenger-Tank 3959 | -8/Materials | Discovered new exit (range 16) 4149 | -8/Materials | Discovered new exit (range 10) 4550 | -8/Materials | First assault squad dispatched 4567 | -8/Materials | Entered Factory 4567 | -7/Factory | Evolved 2 slots: Utility x2 4786 | -7/Factory | Discovered new exit (range 7) 4797 | -7/Factory | Identified exit to Factory 4942 | -7/Factory | Repaired Broken Carbon-fiber Leg 4963 | -7/Factory | Build established: Scavenger-Mutant 5377 | -7/Factory | Discovered exit to Factory (range 22) 5694 | -7/Factory | Lost 3 parts (1p2n) 6738 | -7/Factory | Discovered new exit (range 25) 6864 | -7/Factory | Identified exit to Lower Caves 6866 | -7/Factory | Entered Lower Caves 6908 | -7/Lower Caves | Build established: Mutant 7460 | -7/Lower Caves | Build established: Skirmisher 7522 | -7/Lower Caves | Entered an active Warlord outpost 7538 | -7/Lower Caves | A Commander dispatched an escort 7590 | -7/Lower Caves | Encountered a Warlord checkpoint 7840 | -7/Lower Caves | Discovered new exit (range 9) 7853 | -7/Lower Caves | Identified exit to Lower Caves 7855 | -7/Lower Caves | Entered another Lower Caves area 7855 | -7/Lower Caves | Accompanied by 2 allies 7856 | -7/Lower Caves | Commander's escort returned to base 7856 | -7/Lower Caves | Commander's escort returned to base 7942 | -7/Lower Caves | Discovered exit to Factory (range 13) 8084 | -7/Lower Caves | Learned Factory machine intel 8337 | -7/Lower Caves | Build established: Mutant 8360 | -7/Lower Caves | Encountered a Warlord checkpoint 8482 | -7/Lower Caves | Discovered new exit (range 9) 8496 | -7/Lower Caves | Identified exit to Zion 8498 | -7/Lower Caves | Entered Zion 8615 | -7/Zion | Found CR-A16's Pointy Stick 8690 | -7/Zion | Discovered new exit (range 15) 9296 | -7/Zion | Given A8's code to call for help 9600 | -7/Zion | Identified exit to Proximity Caves 9602 | -7/Zion | Entered Proximity Caves 9609 | -6/Proximity Caves | Attracted the attention of an 0b10 checkpoint 9896 | -6/Proximity Caves | Build established: Derelict-Gunner 10026 | -6/Proximity Caves | Discovered exit to Factory (range 13) 10064 | -6/Proximity Caves | Entered Factory 10064 | -6/Factory | Evolved 2 slots: Propulsion x1, Utility x1 10065 | -6/Factory | Identified exit to Lower Caves 10066 | -6/Factory | Loaded intel: 259 machine locations 10400 | -6/Factory | Build established: Derelict-Mutant 10813 | -6/Factory | Lost 3 parts (2n1w) 11285 | -6/Factory | Destroyed 7 combat bots 11290 | -6/Factory | Lost 3 parts (1n1u1w) 11559 | -6/Factory | Build established: Scavenger-Tank 11762 | -6/Factory | Discovered new exit (range 11) 11789 | -6/Factory | Identified exit to Factory 12164 | -6/Factory | First assault squad dispatched 12408 | -6/Factory | Entered another Factory area 12408 | -5/Factory | Evolved 2 slots: Power x1, Propulsion x1 12570 | -5/Factory | Repaired Adv. Heat Sink? 12585 | -5/Factory | Identified exit to Upper Caves 12585 | -5/Factory | Identified exit to Extension 12671 | -5/Factory | Lost 3 parts (1p2u) 12752 | -5/Factory | Entered Extension 12874 | -5/Extension | Build established: Hacker-Mutant 13053 | -5/Extension | Rescued A7 13148 | -5/Extension | Repaired Broken Gravmag Array+ 13170 | -5/Extension | Rescued a captive Derelict 13235 | -5/Extension | Rescued a captive Derelict 13236 | -5/Extension | Rescued a captive Derelict 13251 | -5/Extension | Rescued a captive Derelict 13252 | -5/Extension | Rescued a captive Derelict 13262 | -5/Extension | Rescued a captive Derelict 13266 | -5/Extension | Rescued a captive Derelict 13575 | -5/Extension | Spotted B-75 Beast 13580 | -5/Extension | Spotted B-75 Beast 13608 | -5/Extension | Revealed the true nature of CR-A16's Pointy Stick 13608 | -5/Extension | Destroyed B-75 Beast 13612 | -5/Extension | Destroyed B-75 Beast 13638 | -5/Extension | Lost 3 allies 13648 | -5/Extension | Lost 5 parts (2p3n) 13736 | -5/Extension | Lost 5 allies 13801 | -5/Extension | Discovered new exit (range 16) 13803 | -5/Extension | Discovered new exit (range 15) 13821 | -5/Extension | Identified exit to Factory 13830 | -5/Extension | Identified exit to Cetus 13892 | -5/Extension | Entered Cetus 13892 | -5/Cetus | Accompanied by 3 allies (A7) 13897 | -5/Cetus | Acquired a Cetus Manufacturing Module code from A7 13909 | -5/Cetus | Spotted Cetus Guard 13909 | -5/Cetus | Spotted Cetus Guard 13917 | -5/Cetus | Spotted Cetus Guard 13919 | -5/Cetus | Spotted Cetus Guard 13924 | -5/Cetus | Allies destroyed Cetus Guard 13931 | -5/Cetus | Allies destroyed Cetus Guard 13935 | -5/Cetus | Destroyed Cetus Guard 14059 | -5/Cetus | Started Cetus Manufacturing Module 14077 | -5/Cetus | Escorted A7 to Cetus Mainframe 14084 | -5/Cetus | Manufactured an Enhanced Grunt 14109 | -5/Cetus | Manufactured an Enhanced Grunt 14134 | -5/Cetus | Manufactured an Enhanced Grunt 14159 | -5/Cetus | Manufactured an Enhanced Grunt 14166 | -5/Cetus | Discovered new exit (range 15) 14184 | -5/Cetus | Manufactured an Enhanced Grunt 14188 | -5/Cetus | Identified exit to Archives 14232 | -5/Cetus | Spotted Cetus Guard 14233 | -5/Cetus | Spotted Cetus Guard 14239 | -5/Cetus | Destroyed Cetus Guard 14239 | -5/Cetus | Spotted Cetus Guard 14242 | -5/Cetus | Spotted Cetus Guard 14251 | -5/Cetus | Allies destroyed Cetus Guard 14260 | -5/Cetus | Allies destroyed Cetus Guard 14263 | -5/Cetus | Destroyed Cetus Guard 14293 | -5/Cetus | Discovered exit to Factory (range 16) 14303 | -5/Cetus | Met Revision 17 14386 | -5/Cetus | Entered Archives 14386 | -5/Archives | Accompanied by 5 allies (A7) 14391 | -5/Archives | Received a hacking code to weaken MAIN.C 14431 | -5/Archives | Build established: Scavenger-Tank 14525 | -5/Archives | Discovered new exit (range 16) 14554 | -5/Archives | Identified exit to Hub_04(d) 14555 | -5/Archives | Entered Hub_04(d) 14555 | -5/Hub_04(d) | Accompanied by 4 allies 14649 | -5/Hub_04(d) | Network Hub disabled 14720 | -5/Hub_04(d) | Discovered exit to Factory (range 12) 14734 | -5/Hub_04(d) | Lost 4 allies 14771 | -5/Hub_04(d) | Entered Factory 14771 | -4/Factory | Evolved 2 slots: Utility x2 14900 | -4/Factory | Build established: Scavenger-Mutant 15004 | -4/Factory | Discovered new exit (range 4) 15009 | -4/Factory | Identified exit to Upper Caves 15051 | -4/Factory | Entered Upper Caves 15070 | -4/Upper Caves | Encountered a Warlord checkpoint 15348 | -4/Upper Caves | Attracted the attention of an 0b10 checkpoint 15434 | -4/Upper Caves | Learned Research emergency access door positions 15582 | -4/Upper Caves | Discovered new exit (range 14) 15647 | -4/Upper Caves | Ambushed by research squad 15672 | -4/Upper Caves | Build established: Scavenger-Tank 15692 | -4/Upper Caves | Learned Research terminal intel 15698 | -4/Upper Caves | Identified exit to Upper Caves 15700 | -4/Upper Caves | Entered another Upper Caves area 15796 | -4/Upper Caves | Encountered a Warlord checkpoint 15847 | -4/Upper Caves | Learned location of Quarantine (-3) 15914 | -4/Upper Caves | Attracted the attention of an 0b10 checkpoint 16121 | -4/Upper Caves | Discovered new exit (range 4) 16134 | -4/Upper Caves | Identified exit to Warlord 16135 | -4/Upper Caves | Entered Warlord 16189 | -4/Warlord | System corruption cleaned by Quarantine Array 16875 | -4/Warlord | Visited the Vortex Lab 16884 | -4/Warlord | Warlord's base attacked by MAIN.C 16899 | -4/Warlord | Found Prototype Energy Cannon 16899 | -4/Warlord | Identified Vortex Driver 16902 | -4/Warlord | Found Vortex Driver 17068 | -4/Warlord | Met Warlord 17234 | -4/Warlord | Warlord forces counterattacked 17277 | -4/Warlord | Spotted Executioner 17281 | -4/Warlord | Spotted Executioner 17294 | -4/Warlord | Destroyed Executioner 17296 | -4/Warlord | Destroyed Executioner 17321 | -4/Warlord | Destroyed 7 combat bots 17328 | -4/Warlord | Spotted Striker 17337 | -4/Warlord | Discovered new exit (range 14) 17381 | -4/Warlord | Identified exit to Proximity Caves 17382 | -4/Warlord | Entered Proximity Caves 17409 | -3/Proximity Caves | Lost 3 allies 17927 | -3/Proximity Caves | Discovered new exit (range 10) 17940 | -3/Proximity Caves | Identified exit to Research 17942 | -3/Proximity Caves | Entered Research 17942 | -3/Research | Evolved 2 slots: Utility x2 17944 | -3/Research | Loaded intel: 23 terminal locations 18125 | -3/Research | Identified exit to Armory 18125 | -3/Research | Identified exit to Quarantine 18142 | -3/Research | Revision forces began assault on 0b10 18184 | -3/Research | Met up with Revision 17++ 18411 | -3/Research | Watched by a mysterious "MATRIX" hacker. 18417 | -3/Research | Entered Quarantine 18430 | -3/Quarantine | Found Alien Artifact 18433 | -3/Quarantine | Found Alien Artifact 18433 | -3/Quarantine | Identified Hpw. Transdimensional Reconstructor 18433 | -3/Quarantine | Warped through subspace 18439 | -3/Quarantine | Identified Dimensional Node Initializer 18439 | -3/Quarantine | Initialized slip node 18491 | -3/Quarantine | Met incapacitated Sigix Warrior 18491 | -3/Quarantine | Lockdown squad dispatched 18492 | -3/Quarantine | Acquired the access code to the Sigix quarantine chamber 18504 | -3/Quarantine | Spotted Lightning 18504 | -3/Quarantine | Spotted Lightning 18550 | -3/Quarantine | Identified exit to Research 18559 | -3/Quarantine | Found Alien Artifact 18648 | -3/Quarantine | Found Alien Artifact 18665 | -3/Quarantine | Spotted Fortress 18677 | -3/Quarantine | Discovered new exit (range 6) 18677 | -3/Quarantine | Discovered new exit (range 6) 18678 | -3/Quarantine | Identified exit to Section 7 18679 | -3/Quarantine | Identified exit to Protoforge 18717 | -3/Quarantine | Entered Section 7 18800 | -3/Section 7 | Spotted B-86 Titan 18808 | -3/Section 7 | Spotted S7 Guard 18812 | -3/Section 7 | Found Alien Artifact 18812 | -3/Section 7 | Identified Core Physics Calibrator 18853 | -3/Section 7 | Entered Research 18853 | -2/Research | Warlord forces began assault on 0b10 18853 | -2/Research | Evolved 2 slots: Propulsion x2 18919 | -2/Research | Lost 3 allies 18963 | -2/Research | Research machine network offline 18978 | -2/Research | Found Prototype Device 18978 | -2/Research | Identified Exp. Thermal Shield 19016 | -2/Research | Build established: Hacker-Scout 19057 | -2/Research | Spotted B-90 Cyclops 19075 | -2/Research | Discovered new exit (range 14) 19081 | -2/Research | Identified exit to Testing 19081 | -2/Research | Entered Testing 19110 | -2/Testing | Found Prototype Ballistic Cannon 19110 | -2/Testing | Identified Perforator 19125 | -2/Testing | Found Prototype Hackware 19125 | -2/Testing | Identified Ghost Barrier 19138 | -2/Testing | Identified exit to Access 19141 | -2/Testing | Found Prototype Processor 19141 | -2/Testing | Identified Exp. Targeting Computer 19148 | -2/Testing | Found Quantum Capacitor 19251 | -2/Testing | Found Prototype Launcher 19251 | -2/Testing | Identified Ragnarok Missile Launcher 19256 | -2/Testing | Found Ragnarok Missile Launcher 19258 | -2/Testing | Unchained authorized (6S-H0T) 19340 | -2/Testing | Spotted PY-00AB5BG1ZG 19353 | -2/Testing | Entered Access 19353 | -1/Access | Evolved 2 slots: Propulsion x2 19455 | -1/Access | Unchained authorized (6S-H0T) 19475 | -1/Access | P-80 Master assimilated allied O5-7FJ(K) 19475 | -1/Access | Spotted O5-7FJ(K) 19532 | -1/Access | Destroyed O5-7FJ(K) 19645 | -1/Access | Lost 4 parts (1p3u) 19677 | -1/Access | Spotted B-99 Colossus 19678 | -1/Access | Spotted B-99 Colossus 19709 | -1/Access | Identified Transdimensional Reconstructor 19709 | -1/Access | Warped through subspace 19710 | -1/Access | System corruption reached 10% 19755 | -1/Access | Core integrity fell below 50% 19768 | -1/Access | Lost 13 parts (1p7n3u2w) 19783 | -1/Access | Core integrity fell below 20% 19794 | -1/Access | Destroyed by G-73 Enforcer with Phase Gun Last Messages --------------- to Access Zone 2E. 19732_ Imp. Antigrav System destroyed. 19733_ Antigrav Array destroyed. 19734_ Quantum Reactor destroyed. 19735_ Vortex penetrates U-05 Engineer. 19735_ Destroyed Welding Torch. 19735_ Destroyed Wheel. 19735_ U-05 Engineer destroyed. 19735_ Destroyed Xenon Bombardment Thruster. 19735_ S-43 Plague destroyed. 19735_ K-01 Serf collects debris. 19737_ S-43 Plague suffers critical hit (Destroy). 19737_ Vortex Driver destroyed. 19738_ R-10 Processor collects Imp. Matter Neutralizer. 19739_ K-01 Serf collects debris. 19742_ R-10 Processor collects Hcp. Battery. 19766_ A6#W GVKC%SOS9R V 19792_ Wave Collapse Detector explodes. 19792_ G-73 Enforcer destroyed. [Achievement: 30k Club] Map ----- +----------------------------------------------------+ | #????????????????????????????????????????????? | | #????????????????##############??????????????? | | #????????????????# #??????????????? | | #????????????????# #??????????????? | | #????????????????# #??????????????? | | #####????????????????# #??????????????? | | ?????????????????????# #??????????????? | | ?????????????????????# !* #??????????????? | | ?????????????????????# !* #??????????????? | | ##################???# ** #??????????????? | | # #???# #??????????????? | | # #???# #??????????????? | | # #???# #??????????????? | | # #??## #??????????????? | | # #?## ##########+###?????????????? | | # ###;##?????# #?????????????? | | "" # # s ####### #?????????????? | | "" # b R #######???????? | | """" # #k s Rs / ! ? | | """" # # s k #######???????? | | "" # ### #?????????????? | | "" # #?# #?????????????? | | ####### #?# #?????????????? | | # #?# #?????????????? | | # *#?# g g #?????????????? | | ##/########??# @ g #?????????????? | | ## #?????????# s g #?????????????? | | ## #????????## [%[#?????????????? | | ??# #????????# =############???? | | ##/##### #????????# ? | | ! ##???????# ? | | !! #???????# ##########/#???? | | +???????# ########+###??????????????? | | %! #???????# #????? !???????????????? | | #???????# #??? [ ?????????????? | | ## #???????# #??# #????????????? | | ?# #???????# #??# #????????????? | | ?# #???????# #??# #????????????? | | ?# ######### #??# ! #????????????? | | ?# #??# * #????????????? | | ?# #??# #????????????? | | ?# #??######+####????????????? | | ?# #?????????????????????????? | | ?# ???????????????????????? | | ?#+########################??????????????????????? | | ?????????????????????????????????????????????????? | | ?????????????????????????????????????????????????? | | ?????????????????????????????????????????????????? | | ?????????????????????????????????????????????????? | | ?????????????????????????????????????????????????? | +----------------------------------------------------+ Best States ------------- Heat Dissipation 101 Energy Generation 43 Energy Capacity 625 Matter Stores 300 Matter Capacity 300 Sight Range 16 Robot Scan Range 16 Terrain Scan Range 16 Terrain Scan Density 210 Cloak Strength 2 Armor Coverage 1200 Resistance: KI 25 Resistance: TH 30 Resistance: EM 15 Phase Shifting 5 Evasion (%) 71 Targeting Accuracy 12 Core Analysis 6 Recoil Reduction 6 Offensive Hacking 23 Defensive Hacking 20 Item Schematics ----------------- Arm. Leg | -7/Factory | Hacked Riot Gun | -7/Zion | Free Flamer | -7/Zion | Free Barrage Gun | -7/Zion | Free Slug Cannon | -7/Zion | Free Enh. Flamer | -7/Zion | Free Ripper | -7/Zion | Free Arc Thrower | -7/Zion | Free Jamming Amplifier | -7/Zion | Archive Plasma Cannon | -7/Zion | Archive Imp. Melee Analysis Suite | -7/Zion | Archive Hpw. Shock Rifle | -7/Zion | Archive Lyr. Heavy Armor Plating | -7/Zion | Archive Imp. Trap Scanner | -7/Zion | Archive Arc Projector | -7/Zion | Archive Phase Cannon | -7/Zion | Archive Armor Integrity Analyzer | -7/Zion | Archive Proton Cannon | -7/Zion | Archive Xenon Bombardment Thruster | -7/Zion | Archive Antigrav System | -7/Zion | Archive Imp. Medium Armor Plating | -7/Zion | Archive Imp. Reaction Control System | -7/Zion | Archive Robot Schematics ------------------ B-48 Gladiator | -7/Zion | Archive Y-54 Guardian | -7/Zion | Archive K-01 Serf | -7/Zion | Archive Fabricated ------------ Nothing Repaired ---------- Carbon-fiber Leg | 7% | -7/Factory | Broken Adv. Heat Sink | 48% | -5/Factory Gravmag Array | 36% | -5/Extension | Broken Studied --------- Gravmag Array | -6/Factory | Hacked Hyp. Gauss Cannon | -3/Research | Hacked Quantum Rifle | -3/Research | Hacked Antimatter Reactor | -3/Research | Hacked Imp. Thunder Leg | -3/Research | Hacked Alien Tech Used ----------------- High-powered Transdimensional Reconstructor Dimensional Node Initializer Core Physics Calibrator Transdimensional Reconstructor Achievements -------------- 30k Club False Reunion Immobile And Lovin' It Nope Ooh, Shiny! Prolific Hacker The Better Part Of Valor The Robot, The Myth, The Legend Turtlemind Challenges ------------ None Game ------ Seed SwarmPlexusStripper Manual? 0 Play Time 03:59:34 Cumulative 42.6 hours Start 2026.02.26 @ 06:14:53 End 2026.02.26 @ 20:16:16 Sessions 3 Manual Loads 0 Difficulty Rogue Special Mode None Game No. 35 Rogue 35 Adventurer 0 Explorer 0 Win Type - Total 2 Types 2/0/0/0/0/0/0/0/0/0 Lore% 36 Gallery% 34 Achievement% 32 Wizard Run 0 Options --------- Layout 0 ASCII 1 Keyboard 1 Movement Numpad Keybinds 0 Fullscreen 1 Font 24/Cog Map View 76x50 Zoom Use 0% Tactical HUD 1 Map Filters NONE Filters NONE Steam 1 RUN: 6eb271c7-7968-425c-b440-f70f85e3dd2d